bitfinex-derivatives/quotes_ETHF0:USTF0_20250326
["timestamp","ask_amount","ask_price","bid_price","bid_amount"]
[1743018956954,0.99849,2002.8,2002.7,0.9985]
[1743018957153,2.38599,2002.8,2002.7,0.9985]
[1743018957943,3.2078,2003.2,2002.6,44.7202]
[1743018958144,0.99826,2003.3,2003.2,0.99825]
[1743018958352,0.99826,2003.3,2003.2,4.20608]
[1743018958646,0.99826,2003.3,2003.2,3.2078]
[1743018958955,0.99826,2003.3,2003.2,4.20608]
[1743018959257,0.99826,2003.3,2003.2,3.2078]
[1743018960153,0.99826,2003.3,2003.2,4.20608]
[1743018960359,0.99826,2003.3,2003.2,3.2078]
[1743018961546,0.99838,2003.0,2002.9,0.9984]
[1743018961950,0.99843,2002.9,2002.8,4.20626]
[1743018964148,2.42461,2003.0,2002.9,0.99843]
[1743018964361,0.99833,2003.2,2003.1,0.99829]
[1743018964653,2.49522,2003.6,2003.2,0.99828]
[1743018964855,0.99828,2003.2,2003.1,0.9983]
[1743018965052,0.99843,2003.0,2002.9,0.99842]
[1743018965247,0.99848,2002.9,2002.8,0.99844]
[1743018965448,0.99848,2002.8,2002.7,5.56669]
[1743018965649,0.99848,2002.8,2002.7,1.3604]
[1743018965954,0.99858,2002.6,2002.5,41.7986]
[1743018966157,2.40007,2002.7,2002.6,0.99858]
[1743018967552,0.99863,2002.6,2002.5,0.9986]
[1743018967757,2.29813,2002.6,2002.5,0.9986]
[1743018969865,0.99863,2002.5,2002.4,46.41193335]
[1743018970062,2.29813,2002.5,2002.4,46.41193335]
[1743018970454,2.29813,2002.5,2002.4,44.01528335]
[1743018970657,2.29813,2002.5,2002.4,0.00748335]
[1743018973163,2.29813,2002.5,2002.1,4.20661]
[1743018973164,0.99878,2002.2,2002.1,3.2078]
[1743018973364,2.49704,2002.2,2001.8,4.20676]
[1743018973559,2.49722,2002.0,2001.6,2.32514]
[1743018973867,0.99908,2001.6,2001.5,44.0078]
[1743018974065,0.99908,2001.6,2001.5,45.00693]
[1743018974266,0.99908,2001.6,2001.5,3.2078]
[1743018974666,2.30038,2001.6,2001.5,3.2078]
[1743018974866,2.30038,2001.6,2001.5,4.20693]
[1743018975564,1.3013,2001.6,2001.5,4.20693]
[1743018976359,0.00748335,2001.8,2001.7,0.99903]
[1743018977567,1.00646335,2001.8,2001.7,0.99903]
[1743018977765,2.31916335,2001.8,2001.7,0.99903]
[1743018977960,1.32018335,2001.8,2001.7,0.99903]
[1743018978370,2.31916335,2001.8,2001.7,0.99903]
[1743018979165,1.32018335,2001.8,2001.7,0.99903]
[1743018979368,0.00748335,2001.8,2001.7,0.99903]
[1743018979575,0.00748335,2001.8,2001.7,1.67923]
[1743018980175,0.00748335,2001.8,2001.7,42.47923]
[1743018980674,1.00646335,2001.8,2001.7,42.47923]
[1743018980875,2.33696335,2001.8,2001.7,42.47923]
[1743018981976,2.33696335,2001.8,2001.7,43.82323]
[1743018982375,1.33798335,2001.8,2001.7,43.82323]
[1743018982976,0.00748335,2001.8,2001.7,43.82323]
[1743018984275,0.99876,2002.3,2002.2,0.99878]
[1743018984476,2.43438,2002.4,2002.3,0.99868]
[1743018985276,0.99873,2002.3,2002.2,1.4288]
[1743018985472,0.99883,2002.1,2002.0,0.6856]
[1743018985677,0.99883,2002.1,2002.0,2.36178]
[1743018986183,2.0753,2002.2,2002.1,0.99883]
[1743018986371,3.07408,2002.2,2002.1,2.36173]
[1743018986571,3.07408,2002.2,2002.1,1.3629]
[1743018986769,3.07408,2002.2,2002.1,2.36173]
[1743018986970,3.07408,2002.2,2002.1,5.56953]
[1743018987471,3.07408,2002.2,2002.1,4.5707]
[1743018988173,3.07408,2002.2,2002.1,1.3629]
[1743018988673,0.99885,2002.1,2002.0,0.99886]
[1743018988873,2.37455,2002.1,2002.0,2.35286]
[1743018989274,2.37455,2002.1,2002.0,1.354]
[1743018990179,2.37455,2002.1,2002.0,2.35288]
[1743018990770,2.37455,2002.1,2002.0,1.354]
[1743018991373,0.99893,2001.9,2001.8,4.89233]
[1743018991577,0.99893,2001.9,2001.8,6.20033]
[1743018991776,0.99893,2001.9,2001.8,3.2078]
[1743018993579,0.99893,2001.9,2001.8,5.51478]
[1743018993783,0.99893,2001.9,2001.8,4.5158]
[1743018994685,1.4365,2002.0,2001.8,4.5158]
[1743018994876,0.6995,2002.2,2002.0,0.99884]
[1743018995075,2.39193,2002.1,2002.0,0.99884]
[1743018995477,0.99888,2002.0,2001.9,1.67219]
[1743018995677,2.39198,2002.0,2001.9,1.67219]
[1743018996077,1.3931,2002.0,2001.9,1.67219]
[1743018996676,0.99887,2002.1,2002.0,0.99888]
[1743018996878,2.39197,2002.1,2002.0,0.99888]
[1743018997082,0.99888,2002.0,2001.9,1.67218]
[1743018997382,1.3931,2002.0,2001.9,1.67218]
[1743018997584,0.99877,2002.3,2002.2,0.99875]
[1743018997882,2.42007,2002.3,2002.2,0.99875]
[1743018998077,0.99878,2002.2,2002.1,0.99879]
[1743018998277,2.42008,2002.2,2002.1,0.99879]
[1743018998577,1.4213,2002.2,2002.1,0.99879]
[1743018998781,2.42008,2002.2,2002.1,0.99879]
[1743018999785,1.4213,2002.2,2002.1,0.99879]
[1743019000486,2.42008,2002.2,2002.1,0.99879]
[1743019000689,1.4213,2002.2,2002.1,0.99879]
[1743019001088,1.4213,2002.2,2002.1,4.20659]
[1743019001293,0.99871,2002.4,2002.3,0.99873]
[1743019001588,0.99874,2002.3,2002.2,0.99874]
[1743019002189,0.99878,2002.2,2002.1,4.9262]
[1743019002486,0.99878,2002.2,2002.1,3.9274]
[1743019002691,0.99878,2002.2,2002.1,4.92623]
[1743019003690,0.99878,2002.2,2002.1,3.2078]
[1743019003882,0.99878,2002.2,2001.9,1.67219]
[1743019003883,0.99888,2002.0,2001.9,1.67219]
[1743019004778,2.41098,2002.0,2001.9,1.67219]
[1743019006192,1.4121,2002.0,2001.9,1.67219]
[1743019006485,0.6937,2002.4,2002.2,0.99873]
[1743019006690,0.99877,2002.3,2002.2,0.99873]
[1743019007083,0.99871,2002.4,2002.3,0.99868]
[1743019007893,2.40581,2002.4,2002.3,0.99868]
[1743019009190,1.4071,2002.4,2002.3,0.99868]
[1743019009498,2.40578,2002.4,2002.3,0.99868]
[1743019010389,0.99864,2002.5,2002.4,0.99868]
[1743019010590,2.30702,2002.6,2002.5,0.99863]
[1743019010988,1.4034,2002.7,2002.6,0.99858]
[1743019010989,0.6937,2002.7,2002.6,0.99858]
[1743019011189,2.49571,2003.2,2002.6,3.399]
[1743019011492,0.99852,2002.8,2002.7,0.99848]
[1743019012091,0.99852,2002.8,2002.7,2.40048]
[1743019012993,0.99852,2002.8,2002.7,1.402]
[1743019013197,1.3084,2002.9,2002.6,4.39753]
[1743019013198,0.99853,2002.7,2002.6,0.99853]
[1743019013398,0.99858,2002.6,2002.5,3.05089]
[1743019013599,2.41188,2002.6,2002.5,3.05089]
[1743019014605,2.41188,2002.6,2002.5,2.0523]
[1743019014799,0.99863,2002.5,2002.4,3.2078]
[1743019014999,0.99868,2002.4,2002.3,1.00618335]
[1743019016500,1.4133,2002.5,2002.4,0.99868]
[1743019016501,2.41194,2002.5,2002.4,0.99868]
[1743019016803,0.99868,2002.4,2002.3,1.00616335]
[1743019016997,2.35608,2002.4,2002.3,1.00616335]
[1743019018299,4.96869663,2013.2,2002.4,2.4967]
[1743019018300,3.2078,2003.0,2002.4,2.4967]
[1743019018499,0.99855,2002.7,2002.6,0.99854]
[1743019019705,2.31072,2002.8,2002.7,0.99853]
[1743019020400,1.3122,2002.8,2002.7,0.99853]
[1743019020808,2.31068,2002.8,2002.7,0.99853]
[1743019021107,1.3122,2002.8,2002.7,0.99853]
[1743019021402,2.31068,2002.8,2002.7,0.99853]
[1743019021806,1.3122,2002.8,2002.7,0.99853]
[1743019022308,2.31068,2002.8,2002.7,0.99853]
[1743019023204,0.99858,2002.6,2002.5,0.99862]
[1743019023405,0.99867,2002.5,2002.4,0.99863]
[1743019023604,2.37617,2002.5,2002.4,0.99863]
[1743019024402,0.9986,2002.6,2002.5,0.99863]
[1743019024710,1.3775,2002.6,2002.5,4.20643]
[1743019024900,2.37608,2002.6,2002.5,4.20643]
[1743019028712,0.99863,2002.5,2002.4,0.99864]
[1743019028913,2.33693,2002.5,2002.4,0.99864]
[1743019030515,1.3383,2002.5,2002.4,0.99864]
[1743019030711,2.33693,2002.5,2002.4,0.99864]
[1743019031313,1.3383,2002.5,2002.4,0.99864]
[1743019031615,2.33693,2002.5,2002.4,4.20644]
[1743019031815,1.3383,2002.5,2002.4,4.20644]
[1743019032011,1.3383,2002.5,2002.4,5.60304]
[1743019032809,2.33693,2002.5,2002.4,5.60304]
[1743019033213,1.3383,2002.5,2002.4,5.60304]
[1743019033612,2.33693,2002.5,2002.4,5.60304]
[1743019033813,1.3383,2002.5,2002.4,5.60304]
[1743019036014,0.6704,2002.9,2002.5,2.49647]
[1743019036317,3.2078,2003.6,2002.8,2.4962]
[1743019036615,1.3716,2003.4,2003.3,0.99823]
[1743019036815,2.39432,2003.6,2003.5,0.99813]
[1743019037012,0.99813,2003.5,2003.4,4.20594]
[1743019037212,2.39432,2003.6,2003.5,0.99813]
[1743019037416,0.6815,2003.6,2003.5,0.99813]
[1743019037618,1.67958,2003.6,2003.5,0.99813]
[1743019038121,0.6815,2003.6,2003.5,0.99813]
[1743019038311,0.6815,2003.6,2003.5,2.36893]
[1743019038512,3.09918,2003.6,2003.5,1.3708]
[1743019039719,3.09918,2003.6,2003.5,2.36893]
[1743019040319,3.09918,2003.6,2003.5,1.3708]
[1743019041418,2.1011,2003.6,2003.5,2.36893]
[1743019041817,3.09918,2003.6,2003.5,1.3708]
[1743019042309,3.09918,2003.6,2003.5,2.36893]
[1743019042509,3.09918,2003.6,2003.5,1.3708]
[1743019043222,0.99823,2003.3,2003.2,1.67594]
[1743019043622,1.4332,2003.5,2003.3,0.99822]
[1743019043623,0.9982,2003.4,2003.3,0.99822]
[1743019044016,1.67959,2003.6,2003.5,0.99813]
[1743019044616,1.67959,2003.6,2003.5,2.35753]
[1743019044914,1.67959,2003.6,2003.5,1.3594]
[1743019045119,1.67959,2003.6,2003.5,2.35753]
[1743019045517,1.67959,2003.6,2003.5,1.3594]
[1743019045717,0.6815,2003.6,2003.5,1.3594]
[1743019046224,0.6815,2003.6,2003.5,2.35753]
[1743019046726,3.2078,2004.2,2003.5,1.3594]
[1743019046926,1.3958,2003.9,2003.8,0.99798]
[1743019047226,0.6631,2004.1,2004.0,0.99788]
[1743019047419,0.6631,2004.1,2003.7,3.2078]
[1743019047420,2.0589,2004.1,2003.9,0.9979]
[1743019048019,2.0589,2004.1,2003.8,0.99795]
[1743019048220,3.2078,2004.6,2004.0,3.2078]
[1743019048423,2.1129,2004.5,2004.1,1.68322]
[1743019048725,1.3958,2004.4,2004.1,1.69067335]
[1743019048922,1.3958,2004.4,2004.1,0.69288335]
[1743019049428,3.2078,2004.6,2004.3,0.99769]
[1743019049617,1.3639,2004.6,2004.3,0.99769]
[1743019049818,1.3639,2004.6,2004.4,0.99766]
[1743019050023,1.3639,2004.6,2004.3,0.99769]
[1743019050230,1.3639,2004.6,2004.3,0.9977]
[1743019050434,1.3639,2004.6,2004.2,40.8]
[1743019050622,3.2078,2004.9,2004.6,0.99756]
[1743019051524,1.3639,2004.8,2004.5,4.39261]
[1743019051724,1.3639,2004.8,2004.6,1.66507]
[1743019051916,1.3639,2004.8,2004.6,0.6675]
[1743019052728,1.3639,2004.8,2004.5,3.395]
[1743019052729,3.05242,2004.8,2004.5,3.395]
[1743019052928,2.49323,2005.2,2004.6,2.35165]
[1743019052929,0.99739,2005.0,2004.6,2.35165]
[1743019053126,2.43659,2005.0,2004.6,4.5619]
[1743019053322,2.43659,2005.0,2004.7,0.9975]
[1743019053323,1.4392,2005.0,2004.7,0.9975]
[1743019053516,2.43659,2005.0,2004.7,0.9975]
[1743019053729,1.4392,2005.0,2004.7,0.9975]
[1743019053929,1.4392,2005.0,2004.7,0.99748]
[1743019054131,1.4392,2005.0,2004.8,0.99748]
[1743019055131,1.4392,2005.0,2004.9,0.99743]
[1743019055429,1.68834,2005.1,2004.6,7.05585]
[1743019055623,2.99534,2005.1,2004.8,0.99745]
[1743019055818,2.99534,2005.1,2004.6,7.05585]
[1743019055819,3.2078,2005.5,2004.9,6.6018]
[1743019056019,1.307,2005.4,2005.0,0.6734]
[1743019056228,2.30421,2005.4,2005.1,1.71293]
[1743019056533,0.99724,2005.3,2005.1,0.7156]
[1743019056727,2.30424,2005.3,2005.1,0.7156]
[1743019056928,1.307,2005.3,2004.9,3.2078]
[1743019057135,0.99735,2005.1,2004.9,3.2078]
[1743019057330,1.307,2005.3,2004.9,3.2078]
[1743019057535,0.99747,2004.9,2004.6,4.20537]
[1743019057724,1.307,2004.8,2004.6,7.59937]
[1743019058133,2.97849,2004.8,2004.6,7.59937]
[1743019058333,0.99742,2005.0,2004.8,0.99746]
[1743019058532,0.9974,2005.0,2004.6,9.09569]
[1743019058929,2.37336,2005.1,2004.7,2.49383]
[1743019059126,0.674,2005.2,2004.7,2.49383]
[1743019059127,0.674,2005.2,2005.0,0.99738]
[1743019059327,0.99733,2005.1,2005.0,0.99738]
[1743019059527,0.99733,2005.1,2005.0,2.33288]
[1743019059732,0.99733,2005.1,2005.0,1.3355]
[1743019061223,0.99738,2005.0,2004.9,6.6008]
[1743019061426,0.99738,2005.0,2004.9,3.393]
[1743019062033,0.99738,2005.0,2004.9,4.8029]
[1743019062336,0.99738,2005.0,2004.9,1.4099]
[1743019063824,0.99748,2004.8,2004.7,2.36211]
[1743019064028,0.99748,2004.8,2004.7,3.77201]
[1743019064235,0.99748,2004.8,2004.7,2.7745]
[1743019064431,0.99748,2004.8,2004.7,1.4099]
[1743019064634,3.18447,2005.0,2004.6,3.2078]
[1743019064635,0.99753,2004.7,2004.6,3.2078]
[1743019064839,2.39623,2004.7,2004.6,4.6465]
[1743019065835,2.39623,2004.7,2004.6,5.64408]
[1743019066041,2.39623,2004.7,2004.6,4.6465]
[1743019066341,2.39623,2004.7,2004.6,5.64408]
[1743019066834,2.39623,2004.7,2004.6,4.6465]
[1743019067933,2.39623,2004.7,2004.6,3.2078]
[1743019069837,0.99763,2004.5,2004.4,1.2984]
[1743019070026,3.2078,2004.8,2004.4,4.5062]
[1743019070341,0.99752,2004.8,2004.7,0.99753]
[1743019070541,0.99754,2004.7,2004.4,7.0004]
[1743019070749,0.99751,2004.8,2004.6,0.99754]
[1743019071040,0.99751,2004.8,2004.7,2.38693]
[1743019071241,0.99751,2004.8,2004.7,1.3894]
[1743019071836,0.99739,2005.0,2004.9,0.99739]
[1743019072340,1.3144,2005.0,2004.9,0.99739]
[1743019072934,2.31178,2005.0,2004.9,0.99739]
[1743019073946,1.3144,2005.0,2004.9,0.99739]
[1743019074145,2.31178,2005.0,2004.9,0.99739]
[1743019074549,0.99732,2005.2,2005.1,0.99729]
[1743019074739,2.49297,2005.4,2005.0,2.35574]
[1743019074740,0.99733,2005.1,2005.0,2.35574]
[1743019075043,1.377,2005.1,2005.0,2.35574]
[1743019075438,0.99726,2005.3,2005.2,0.99728]
[1743019075836,0.99728,2005.2,2005.1,1.68449]
[1743019076648,0.99728,2005.2,2005.1,3.01449]
[1743019077547,0.99728,2005.2,2005.1,0.99729]
[1743019077738,0.99733,2005.1,2005.0,4.20515]
[1743019078339,0.99733,2005.1,2005.0,0.99735]
[1743019078547,0.99738,2005.0,2004.9,2.32741]
[1743019079343,0.99738,2005.0,2004.9,1.33]
[1743019079546,1.66908,2005.0,2004.9,2.32743]
[1743019080246,0.6717,2005.0,2004.9,2.32743]
[1743019080452,1.3625,2005.1,2005.0,0.99738]
[1743019080746,1.3625,2005.1,2005.0,5.57168]
[1743019080948,1.66894,2005.4,2005.3,0.99723]
[1743019081143,2.97254,2005.4,2005.3,0.99723]
[1743019081651,0.99723,2005.3,2005.2,3.04665]
[1743019081840,2.30083,2005.3,2005.2,1.68015]
[1743019082453,0.99728,2005.2,2005.1,1.69857335]
[1743019082750,2.42158,2005.2,2005.1,0.00748335]
[1743019082942,0.9976,2004.7,2004.6,0.99756]
[1743019083254,0.99763,2004.6,2004.5,0.9976]
[1743019083451,0.99763,2004.5,2004.4,1.70384]
[1743019083648,2.42193,2004.6,2004.5,0.99763]
[1743019085251,0.99763,2004.5,2004.4,4.91164]
[1743019085457,2.42193,2004.5,2004.4,1.70384]
[1743019085656,1.4243,2004.5,2004.4,1.70384]
[1743019085851,1.4243,2004.5,2004.4,4.91164]
[1743019086057,2.42193,2004.5,2004.4,4.91164]
[1743019087156,1.4243,2004.5,2004.4,4.91164]
[1743019087357,2.42193,2004.5,2004.4,4.91164]
[1743019088560,1.00500335,2004.8,2004.7,0.99753]
[1743019088762,2.34000335,2004.8,2004.7,4.20533]
[1743019088961,0.00748335,2004.8,2004.7,4.20533]
[1743019089255,0.00748335,2004.8,2004.7,4.91893]
[1743019089863,1.00496335,2004.8,2004.7,5.55239673]
[1743019090256,1.00496335,2004.8,2004.7,4.91893]
[1743019090257,0.00748335,2004.8,2004.7,4.91893]
[1743019091163,0.00748335,2004.8,2004.7,5.00347158]
[1743019091770,1.00496335,2004.8,2004.7,5.00347158]
[1743019092074,1.00496335,2004.8,2004.7,0.08454158]
[1743019092274,1.00496335,2004.8,2004.7,1.08207158]
[1743019092962,3.00406335,2004.8,2004.7,0.08454158]
[1743019093667,3.00406335,2004.8,2004.7,1.08207158]
[1743019094970,3.00406335,2004.8,2004.7,0.08454158]
[1743019095371,3.00406335,2004.8,2004.7,1.50104158]
[1743019096275,3.00406335,2004.8,2004.7,0.08454158]
[1743019100173,1.00496335,2004.8,2004.7,0.08454158]
[1743019100679,2.30146335,2004.8,2004.7,1.48924158]
[1743019101070,2.30146335,2004.8,2004.7,2.48677158]
[1743019101372,2.30146335,2004.8,2004.7,1.48924158]
[1743019101568,2.30146335,2004.8,2004.7,2.48677158]
[1743019101774,2.30146335,2004.8,2004.7,1.48924158]
[1743019102374,1.00496335,2004.8,2004.7,1.48924158]
[1743019102578,0.00748335,2004.8,2004.7,5.69457158]
[1743019102775,1.00496335,2004.8,2004.7,5.69457158]
[1743019103769,1.00496335,2004.8,2004.7,4.69704158]
[1743019104169,3.2078,2005.0,2004.9,0.99743]
[1743019104370,0.99734,2005.2,2005.1,0.99731]
[1743019105079,0.99734,2005.2,2005.1,2.32621]
[1743019105279,0.99734,2005.2,2005.1,2.41075158]
[1743019106181,1.3776,2005.4,2005.1,1.41344158]
[1743019106390,1.3644,2005.4,2005.3,4.20503]
[1743019107282,1.3644,2005.4,2005.3,4.28957158]
[1743019107878,1.3644,2005.4,2005.3,5.62877158]
[1743019108273,2.36158,2005.4,2005.3,5.62877158]
[1743019109087,1.3644,2005.4,2005.3,5.62877158]
[1743019109484,2.36158,2005.4,2005.3,5.62877158]
[1743019109880,1.3644,2005.4,2005.3,5.62877158]
[1743019110588,2.36158,2005.4,2005.3,5.62877158]
[1743019110791,1.3644,2005.4,2005.3,5.62877158]
[1743019111591,2.36158,2005.4,2005.3,5.62877158]
[1743019117589,2.36158,2005.4,2005.3,4.63154158]
[1743019118488,2.36158,2005.4,2005.3,3.29234158]
[1743019118684,2.36158,2005.4,2005.3,0.08454158]
[1743019120086,5.56938,2005.4,2005.3,0.08454158]
[1743019120291,5.56938,2005.4,2004.7,4.2053]
[1743019120292,0.99748,2004.8,2004.7,4.2053]
[1743019120786,0.99748,2004.9,2004.8,0.99746]
[1743019121195,0.657,2005.0,2004.7,3.2078]
[1743019121393,0.99743,2005.0,2004.9,0.99743]
[1743019121790,0.99743,2004.9,2004.8,2.37194]
[1743019124091,0.99743,2004.9,2004.8,1.3745]
[1743019124989,0.99743,2004.9,2004.8,2.37198]
[1743019125291,2.49324,2005.2,2004.8,1.3745]
[1743019125487,1.66488,2005.0,2004.9,1.407]
[1743019125888,3.01578,2005.0,2004.9,1.407]
[1743019126997,3.01578,2005.0,2004.9,2.40443]
[1743019127300,3.01578,2005.0,2004.9,1.407]
[1743019127492,3.01578,2005.0,2004.9,2.40443]
[1743019130092,0.99748,2004.8,2004.7,3.2078]
[1743019130299,0.99748,2004.8,2004.5,0.99762]
[1743019130300,0.99758,2004.6,2004.5,0.99762]
[1743019130502,0.99763,2004.5,2004.4,4.86716]
[1743019130694,0.6675,2005.0,2004.6,0.99758]
[1743019130898,2.40968,2004.9,2004.8,0.99747]
[1743019131098,2.40968,2004.9,2004.8,2.35717]
[1743019131296,2.40968,2004.9,2004.8,1.3597]
[1743019131598,2.40968,2004.9,2004.8,2.35718]
[1743019132200,2.40963,2004.9,2004.8,2.35718]
[1743019132401,2.40963,2004.9,2004.8,3.01888]
[1743019132802,0.99743,2005.0,2004.9,0.9974]
[1743019133001,2.38003,2005.0,2004.9,2.3555]
[1743019134697,2.38003,2005.0,2004.9,1.3581]
[1743019135099,2.38003,2005.0,2004.9,2.35553]
[1743019135804,2.38003,2005.0,2004.9,1.3581]
[1743019136294,2.38003,2005.0,2004.9,2.35553]
[1743019136610,2.38003,2005.0,2004.9,1.3581]
[1743019137403,2.38003,2005.0,2004.9,2.35553]
[1743019137601,2.38003,2005.0,2004.9,1.3581]
[1743019139002,0.99748,2004.8,2004.7,4.90219]
[1743019139306,0.99748,2004.8,2004.7,3.9047]
[1743019139509,0.99748,2004.8,2004.7,4.90223]
[1743019139700,0.99748,2004.8,2004.7,6.20673]
[1743019140399,1.3436,2004.9,2004.8,0.99748]
[1743019140600,1.3436,2004.9,2004.8,2.30858]
[1743019140801,2.34106,2004.9,2004.8,2.30858]
[1743019142309,1.3436,2004.9,2004.6,0.7134]
[1743019142494,2.49405,2004.6,2004.3,0.00748335]
[1743019142693,0.99768,2004.4,2004.3,0.00748335]
[1743019143105,2.31268,2004.4,2004.3,0.00748335]
[1743019143307,4.81268,2004.4,2004.3,3.35e-06]
[1743019143505,0.99793,2003.9,2003.8,1.3111]
[1743019143703,0.99795,2003.9,2003.6,1.3711]
[1743019143906,1.3317,2003.8,2003.7,2.41618]
[1743019144104,0.689,2004.0,2003.7,1.4182]
[1743019144298,2.32967,2003.9,2003.8,1.4182]
[1743019144611,0.99803,2003.7,2003.6,1.37858335]
[1743019144806,0.99803,2003.7,2003.6,0.00748335]
[1743019145502,2.32973,2003.7,2003.6,0.00748335]
[1743019145714,4.82973,2003.7,2003.6,0.00748335]
[1743019146199,0.99841,2003.0,2002.8,0.99843]
[1743019146402,0.99841,2003.0,2002.9,0.99843]
[1743019146597,0.99835,2003.1,2003.0,0.99838]
[1743019146803,0.99839,2003.0,2002.8,2.41666]
[1743019147003,0.99839,2003.0,2002.9,1.399]
[1743019147207,0.99839,2003.0,2002.7,44.676]
[1743019147208,0.99848,2002.8,2002.7,0.6682]
[1743019147403,0.99848,2002.8,2002.7,2.07468335]
[1743019148107,0.99848,2002.8,2002.7,0.00748335]
[1743019149207,6.70628,2002.8,2002.7,0.00748335]
[1743019149508,7.42578,2002.8,2002.7,0.00748335]
[1743019150403,6.4273,2002.8,2002.3,1.399]
[1743019150612,0.99868,2002.4,2002.3,1.399]
[1743019151209,3.39,2002.4,2001.7,4.897]
[1743019151509,3.2078,2002.2,2001.8,1.3856]
[1743019151701,3.2078,2002.2,2001.8,2.39203335]
[1743019151702,0.99885,2002.1,2001.8,2.39203335]
[1743019151909,0.99885,2002.1,2001.9,1.3856]
[1743019152110,0.99888,2002.0,2001.9,1.3856]
[1743019152406,0.99893,2001.9,2001.8,0.00748335]
[1743019152611,2.40353,2001.9,2001.8,0.00748335]
[1743019153016,5.79353,2001.9,2001.8,0.00748335]
[1743019153212,9.00133,2001.9,2001.8,0.00748335]
[1743019153513,5.79353,2001.9,2001.8,0.00748335]
[1743019154211,2.40353,2001.9,2001.8,0.00748335]
[1743019154916,0.99893,2001.9,2001.8,0.00748335]
[1743019155713,5.4711,2002.1,2001.8,0.00748335]
[1743019156116,0.99893,2001.9,2001.8,0.00748335]
[1743019156312,3.2078,2002.5,2001.8,0.00748335]
[1743019156512,0.99883,2002.1,2001.8,1.72592335]
[1743019156712,0.99883,2002.1,2001.9,1.3855]
[1743019156918,1.3521,2002.3,2001.9,1.3855]
[1743019156919,0.9988,2002.2,2001.9,2.38443]
[1743019157114,3.2078,2002.5,2002.0,3.2078]
[1743019157313,3.2078,2002.5,2002.1,1.3855]
[1743019157617,1.66999,2002.8,2002.5,0.99861]
[1743019157926,0.99853,2002.7,2002.6,42.1855]
[1743019158117,0.99851,2002.8,2002.6,1.3855]
[1743019158318,0.99853,2002.7,2002.6,4.5933]
[1743019158620,0.99851,2002.8,2002.6,5.59186]
[1743019158821,0.99848,2002.8,2002.7,1.365]
[1743019159015,0.99846,2002.9,2002.7,1.365]
[1743019159215,0.00748335,2003.0,2002.7,1.365]
[1743019159419,0.00748335,2003.0,2002.8,0.99844]
[1743019159614,0.00748335,2003.0,2002.9,2.36343]
[1743019159811,0.00748335,2003.0,2002.9,1.365]
[1743019159812,1.00586335,2003.0,2002.9,1.365]
[1743019160214,0.99853,2002.7,2002.5,0.99861]
[1743019160415,0.99853,2002.7,2002.6,1.365]
[1743019162423,2.37413,2002.7,2002.6,1.365]
[1743019162927,0.99863,2002.5,2002.4,0.6941]
[1743019163814,3.392,2002.5,2001.8,3.21528335]
[1743019164121,0.99892,2002.0,2001.8,3.21528335]
[1743019164316,0.99892,2002.0,2001.9,1.422]
[1743019164317,4.39092,2002.0,2001.9,1.422]
[1743019164518,4.39092,2002.0,2001.8,0.00748335]
[1743019164519,0.99893,2001.9,2001.8,0.00748335]
[1743019164715,2.37453,2001.9,2001.8,0.00748335]
[1743019165523,10.70453,2001.9,2001.8,3.35e-06]
[1743019165722,0.99925,2001.3,2001.2,1.4172]
[1743019166119,0.99909,2001.6,2001.2,4.625]
[1743019166325,3.392,2001.9,2001.7,0.999]
[1743019166530,3.392,2001.9,2001.8,1.4172]
[1743019167024,4.39093,2001.9,2001.8,1.4172]
[1743019167227,0.00748335,2002.0,2001.9,0.99893]
[1743019167432,0.00748335,2002.0,2001.9,2.41613]
[1743019167633,0.00748335,2002.0,2001.9,4.91613]
[1743019167927,0.00748335,2002.0,2001.9,2.41613]
[1743019168321,0.99869,2002.4,2002.2,0.99873]
[1743019168530,0.99869,2002.4,2002.3,1.4018]
[1743019168926,0.99868,2002.4,2002.3,1.4018]
[1743019169524,0.99878,2002.2,2002.1,3.2078]
[1743019169822,0.99878,2002.2,2002.1,4.6096]
[1743019170836,4.39078,2002.2,2002.1,4.6096]
[1743019171246,0.99893,2001.9,2001.8,0.685]
[1743019171445,0.99893,2001.9,2001.8,1.3827]
[1743019171642,4.39093,2001.9,2001.8,1.3827]
[1743019171945,3.392,2001.9,2001.8,1.3827]
[1743019172145,4.39093,2001.9,2001.8,1.3827]
[1743019173447,0.99903,2001.7,2001.6,0.00748335]
[1743019174744,2.49782,2001.5,2000.8,3.2078]
[1743019174940,0.99938,2001.0,2000.9,1.3513]
[1743019175634,3.393,2001.1,2000.9,1.3513]
[1743019175837,1.31688335,2001.2,2001.1,0.99933]
[1743019176041,0.00748335,2001.2,2001.1,0.99933]
[1743019176235,0.99935,2001.1,2000.9,2.35071]
[1743019176647,0.99938,2001.0,2000.9,2.35071]
[1743019176846,0.99938,2001.0,2000.9,1.3513]
[1743019177345,0.99948,2000.8,2000.7,0.66118335]
[1743019177546,0.99945,2000.9,2000.8,1.3406]
[1743019177953,2.35155,2000.9,2000.8,1.3406]
[1743019180047,0.99948,2000.8,2000.7,0.00748335]
[1743019180349,2.32668,2000.8,2000.7,0.00748335]
[1743019180948,1.3272,2000.8,2000.7,0.00748335]
[1743019181148,5.72068,2000.8,2000.7,0.00748335]
[1743019183046,8.92848,2000.8,2000.7,0.00748335]
[1743019184555,8.93148,2000.8,2000.7,0.00748335]
[1743019184948,8.93148,2000.8,2000.7,1.39378335]
[1743019185261,5.53448,2000.8,2000.7,1.39378335]
[1743019185458,8.93048,2000.8,2000.7,1.39378335]
[1743019186656,5.72268,2000.8,2000.7,1.39378335]